[Event "WSCC  M50 2019"]
[Site "Bucharest"]
[Date "2019.11.12"]
[Round "1.24"]
[White "Pogosian, Vladimir"]
[Black "Godena, Michele"]
[Result "0-1"]
[ECO "C51"]
[WhiteElo "2017"]
[BlackElo "2449"]
[Annotator "NA"]
[PlyCount "173"]
[EventDate "2019.11.12"]
[EventType "swiss"]
[EventCountry "ROU"]
[SourceTitle "playchess.com"]
[Source "ChessBase"]
[SourceQuality "1"]
[TimeControl "40/5400+30:1800+30"]

1. e4 {[%emt 0:00:00]} e5 {[%emt 0:00:00]} 2. Nf3 {[%emt 0:00:00]} Nc6 {[%emt 0:00:00]} 3. Bc4 {[%emt 0:00:17]} Bc5 {[%emt 0:00:10]} 4. b4 {[%emt 0:01:04]} Bxb4 {[%emt 0:01:05]} 5. c3 {[%emt 0:00:04]} Be7 {[%emt 0:12:08]} 6. d4 {[%emt 0:00:29]} Na5 {[%emt 0:00:17]} 7. Bd3 {[%emt 0:10:01]} d6 {[%emt 0:07:26]} 8. O-O {[%emt 0:02:08]} Nc6 {[%emt 0:04:43]} 9. Nbd2 {[%emt 0:05:38]} Nf6 {[%emt 0:01:02]} 10. Re1 {[%emt 0:09:18]} O-O {[%emt 0:01:21]} 11. Rb1 {[%emt 0:00:36]} h6 {[%emt 0:36:03]} 12. h3 {[%emt 0:03:51]} Nh7 {[%emt 0:02:34]} 13. Nc4 {[%emt 0:13:49]} Ng5 {[%emt 0:01:45]} 14. d5 {[%emt 0:00:09]} Nxf3+ {[%emt 0:02:43]} 15. Qxf3 {[%emt 0:00:09]} Nb8 {[%emt 0:00:03]} 16. Ne3 {[%emt 0:01:06]} Bg5 {[%emt 0:05:55]} 17. g3 {[%emt 0:04:02]} Nd7 {[%emt 0:00:48]} 18. h4 {[%emt 0:01:56]} Bxe3 {[%emt 0:00:17]} 19. Bxe3 {[%emt 0:01:15]} b6 {[%emt 0:04:15]} 20. Kg2 {[%emt 0:05:45]} Nf6 {[%emt 0:00:51]} 21. Bd2 {[%emt 0:00:27]} c6 {[%emt 0:10:05]} 22. dxc6 {[%emt 0:00:33]} Bg4 {[%emt 0:00:54]} 23. Qe3 {[%emt 0:00:08]} Qc8 {[%emt 0:02:01]} 24. f3 {[%emt 0:00:53]} Be6 {[%emt 0:00:30]} 25. Bb5 {[%emt 0:06:22]} a6 {[%emt 0:01:30]} 26. Be2 {[%emt 0:02:37]} b5 {[%emt 0:00:17]} 27. a4 {[%emt 0:00:38]} Qxc6 {[%emt 0:00:50]} 28. axb5 {[%emt 0:00:10]} axb5 {[%emt 0:00:03]} 29. Bxb5 {[%emt 0:00:27]} Qc7 {[%emt 0:00:17]} 30. c4 {[%emt 0:00:53]} Ra2 {[%emt 0:02:21]} 31. Re2 {[%emt 0:02:49]} Rfa8 {[%emt 0:01:24]} 32. Rc1 {[%emt 0:02:06]} Bd7 {[%emt 0:00:56]} 33. Rf2 {[%emt 0:02:31]} Qb7 {[%emt 0:00:45]} 34. Qb3 {[%emt 0:02:38]} R8a3 {[%emt 0:00:26]} 35. Qb4 {[%emt 0:00:19]} Bc6 {[%emt 0:01:10]} 36. Bxc6 {[%emt 0:04:05]} Qxc6 {[%emt 0:00:02]} 37. Qb5 {[%emt 0:01:14]} Qa8 {[%emt 0:00:45]} 38. Rb1 {[%emt 0:00:17]} Kh7 {[%emt 0:00:34]} 39. Qb7 {[%emt 0:00:16]} Qe8 {[%emt 0:00:29]} 40. Be1 {[%emt 0:00:00]} Qe6 {[%emt 0:00:00]} 41. Qb5 {[%emt 0:03:07]} Nh5 {[%emt 0:17:05]} 42. Rbb2 {[%emt 0:03:35]} Ra1 {[%emt 0:00:50]} 43. Rb1 {[%emt 0:05:44]} Rxb1 {[%emt 0:08:45]} 44. Qxb1 {[%emt 0:00:11]} Qxc4 {[%emt 0:00:05]} 45. Qb4 {[%emt 0:00:06]} Qa6 {[%emt 0:01:12]} 46. Rd2 {[%emt 0:00:37]} Ra1 {[%emt 0:00:25]} 47. Rf2 {[%emt 0:02:17]} Rd1 {[%emt 0:02:22]} 48. Qc3 {[%emt 0:01:37]} Nf6 {[%emt 0:02:14]} 49. g4 {[%emt 0:00:33]} h5 {[%emt 0:00:22]} 50. g5 {[%emt 0:00:08]} Nd7 {[%emt 0:00:38]} 51. Bd2 {[%emt 0:04:38]} Nc5 {[%emt 0:00:52]} 52. Be3 {[%emt 0:00:43]} Rd3 {[%emt 0:01:32]} 53. Qc1 {[%emt 0:00:01]} Ne6 {[%emt 0:00:16]} 54. Re2 {[%emt 0:02:38]} Ra3 {[%emt 0:00:40]} 55. Qd2 {[%emt 0:00:58]} Rd3 {[%emt 0:00:09]} 56. Qc1 {[%emt 0:00:04]} Ra3 {[%emt 0:00:45]} 57. Qd2 {[%emt 0:00:02]} Qc4 {[%emt 0:00:21]} 58. Kf2 {[%emt 0:00:36]} Rd3 {[%emt 0:01:02]} 59. Qc2 {[%emt 0:00:48]} Rc3 {[%emt 0:00:13]} 60. Qa2 {[%emt 0:00:19]} Qd3 {[%emt 0:00:29]} 61. Qd2 {[%emt 0:00:10]} Nf4 {[%emt 0:00:44]} 62. Qxd3 {[%emt 0:00:27]} Nxd3+ {[%emt 0:00:02]} 63. Kg3 {[%emt 0:00:14]} Kg6 {[%emt 0:00:35]} 64. Ra2 {[%emt 0:00:40]} Nb4 {[%emt 0:00:46]} 65. Rb2 {[%emt 0:00:33]} Nc6 {[%emt 0:00:38]} 66. Kf2 {[%emt 0:00:17]} Nd8 {[%emt 0:00:38]} 67. Bb6 {[%emt 0:01:50]} Ne6 {[%emt 0:00:13]} 68. Rd2 {[%emt 0:00:16]} Rc6 {[%emt 0:00:16]} 69. Be3 {[%emt 0:00:07]} f6 {[%emt 0:00:35]} 70. gxf6 {[%emt 0:00:15]} gxf6 {[%emt 0:00:43]} 71. Kg3 {[%emt 0:00:19]} f5 {[%emt 0:00:28]} 72. Kg2 {[%emt 0:01:00]} Kf6 {[%emt 0:00:12]} 73. Rb2 {[%emt 0:00:16]} Rc3 {[%emt 0:00:33]} 74. Kf2 {[%emt 0:00:33]} f4 {[%emt 0:00:41]} 75. Bd2 {[%emt 0:00:07]} Rd3 {[%emt 0:00:21]} 76. Bb4 {[%emt 0:01:11]} Nd4 {[%emt 0:00:16]} 77. Bxd6 {[%emt 0:00:24]} Rxf3+ {[%emt 0:00:05]} 78. Kg2 {[%emt 0:00:12]} Rg3+ {[%emt 0:00:27]} 79. Kf2 {[%emt 0:00:03]} Rf3+ {[%emt 0:00:17]} 80. Kg2 {[%emt 0:00:05]} Re3 {[%emt 0:00:35]} 81. Bc5 {[%emt 0:01:30]} Rxe4 {[%emt 0:00:25]} 82. Rb6+ {[%emt 0:01:47]} Ne6 {[%emt 0:00:46]} 83. Bf2 {[%emt 0:00:20]} Re2 {[%emt 0:00:28]} 84. Kf3 {[%emt 0:00:17]} Ra2 {[%emt 0:00:20]} 85. Rb3 {[%emt 0:01:02]} Kf5 {[%emt 0:00:29]} 86. Kg2 {[%emt 0:00:25]} Nc5 {[%emt 0:00:45]} 87. Kg1 {[%emt 0:00:30]} 0-1

[Event "WSCC  M50 2019"]
[Site "Bucharest"]
[Date "2019.11.12"]
[Round "1.29"]
[White "Rinas, Oleg"]
[Black "Craciun, Ovidiu"]
[Result "1-0"]
[ECO "C68"]
[WhiteElo "2420"]
[BlackElo "1953"]
[Annotator "NA RC"]
[PlyCount "105"]
[EventDate "2019.11.12"]
[EventType "swiss"]
[EventCountry "ROU"]
[SourceTitle "playchess.com"]
[Source "ChessBase"]
[SourceQuality "1"]
[TimeControl "40/5400+30:1800+30"]

1. e4 {[%emt 0:00:03]} e5 {[%emt 0:00:00]} 2. Nf3 {[%emt 0:00:25]} Nc6 {[%emt 0:00:00]} 3. Bb5 {[%emt 0:00:21]} a6 {[%emt 0:00:00]} 4. Bxc6 {[%emt 0:02:41]} dxc6 {[%emt 0:00:06]} 5. d4 {[%emt 0:00:39]} exd4 {[%emt 0:00:17]} 6. Qxd4 {[%emt 0:00:26]} Qxd4 {[%emt 0:00:40]} 7. Nxd4 {[%emt 0:00:16]} Bd7 {[%emt 0:00:34]} 8. O-O {[%emt 0:01:50]} O-O-O {[%emt 0:01:01]} 9. Be3 {[%emt 0:02:33]} Ne7 {[%emt 0:11:28]} 10. Nd2 {[%emt 0:07:50] C68: Ruy Lopez: Exchange Variation, sidelines} (10. Nc3 f6 11. Rad1 Ng6 12. f3 b6 13. b3 Ne5 14. a4 Bb4 15. Nce2 Rhe8 16. Nf4 g6 17. h3 Bd6 18. Nde2 {½-½ (18) Fagerstrom,B (2480)-Klovans,J (2570) ICCF email 2009}) 10... b6 $146 {[%emt 0:12:23]} ({Predecessor:} 10... c5 11. N4f3 b6 12. Rfe1 f6 13. e5 Nd5 14. c3 f5 15. g3 h6 16. Nh4 g5 17. Ng6 {0-1 (34) Engel,B (2139)-Mischuk,D (2371) Hofheim 2018}) 11. Rfd1 {[%emt 0:21:01]} c5 {[%emt 0:16:11]} 12. Ne2 {[%emt 0:01:10]} Ng6 {[%emt 0:01:19]} 13. f3 {[%emt 0:17:35]} Be7 {[%emt 0:03:36]} 14. Nf4 {[%emt 0:06:40]} Nxf4 {[%emt 0:04:24]} 15. Bxf4 {[%emt 0:00:11]} Be6 {[%emt 0:00:30]} 16. Be5 {[%emt 0:04:53]} f6 {[%emt 0:09:29]} 17. Bg3 {[%emt 0:01:17]} Rd7 {[%emt 0:01:26]} 18. Kf2 {[%emt 0:01:33]} Rhd8 {[%emt 0:04:58]} 19. Ke1 {[%emt 0:00:19]} Kb7 {[%emt 0:02:05]} 20. b3 {[%emt 0:07:17]} g6 {[%emt 0:02:58]} 21. Nc4 {[%emt 0:04:56]} Bxc4 {[%emt 0:02:40]} 22. bxc4 {[%emt 0:00:17]} Rd4 {[%emt 0:00:03]} 23. Rxd4 {[%emt 0:00:10]} cxd4 {[%emt 0:00:39]} 24. Ke2 {[%emt 0:00:29]} c5 {[%emt 0:07:51]} 25. Kd3 {[%emt 0:01:17]} Kc6 {[%emt 0:01:30]} 26. a4 {[%emt 0:00:58]} Bd6 {[%emt 0:02:33]} 27. Bf2 {[%emt 0:01:02]} Bc7 {[%emt 0:00:38]} 28. h3 {[%emt 0:00:23]} Re8 {[%emt 0:01:57]} 29. Bh4 {[%emt 0:02:49]} f5 {[%emt 0:00:34]} 30. Re1 {[%emt 0:00:45]} f4 {[%emt 0:02:11]} 31. Bg5 {[%emt 0:03:48]} Be5 {[%emt 0:02:17]} 32. Ra1 {[%emt 0:01:40]} Rf8 {[%emt 0:01:42]} 33. Rb1 {[%emt 0:00:44]} Rf7 {[%emt 0:00:37]} 34. Bd8 {[%emt 0:01:35]} Bc7 {[%emt 0:01:38]} 35. Bxc7 {[%emt 0:01:35]} Kxc7 {[%emt 0:00:28]} 36. e5 {[%emt 0:00:12]} Rf5 {[%emt 0:00:59]} 37. Ke4 {[%emt 0:00:27]} Rg5 $16 {[%emt 0:01:33]} 38. Rg1 {[%emt 0:00:55]} Rf5 {[%emt 0:01:42]} 39. Kd5 {[%emt 0:00:20]} Rg5 {[%emt 0:01:30]} 40. Ke4 {[%emt 0:00:00]} Rf5 {[%emt 0:00:00]} 41. g4 {[%emt 0:06:30]} fxg3 {[%emt 0:01:25]} 42. Rxg3 {[%emt 0:00:27]} Kd7 {[%emt 0:00:39]} 43. f4 {[%emt 0:03:59]} Rf8 {[%emt 0:06:32]} 44. c3 {[%emt 0:01:38]} dxc3 {[%emt 0:08:54]} 45. Rxc3 {[%emt 0:00:14]} Kc7 {[%emt 0:03:01]} 46. Rd3 {[%emt 0:00:22]} Re8 {[%emt 0:03:08]} 47. Rd6 {[%emt 0:01:25]} Rf8 {[%emt 0:00:15]} 48. h4 {[%emt 0:00:58]} Rf7 {[%emt 0:02:15]} 49. a5 {[%emt 0:00:37]} bxa5 {[%emt 0:01:24]} 50. Rxa6 {[%emt 0:00:15]} Kb7 {[%emt 0:00:58]} 51. Rxa5 {[%emt 0:00:14]} Kb6 {[%emt 0:00:33]} 52. Ra8 {[%emt 0:00:23]} Rd7 {[%emt 0:04:40]} 53. e6 {[%emt 0:00:27]} 1-0

[Event "WSCC  M50 2019"]
[Site "Bucharest"]
[Date "2019.11.12"]
[Round "1.30"]
[White "Lopez De Turiso, Jose Angel"]
[Black "Vareille, Francois"]
[Result "0-1"]
[ECO "E68"]
[WhiteElo "1947"]
[BlackElo "2417"]
[Annotator "NA"]
[PlyCount "56"]
[EventDate "2019.11.12"]
[EventType "swiss"]
[EventCountry "ROU"]
[SourceTitle "playchess.com"]
[Source "ChessBase"]
[SourceQuality "1"]
[TimeControl "40/5400+30:1800+30"]

1. d4 {[%emt 0:00:00]} Nf6 {[%emt 0:00:00]} 2. c4 {[%emt 0:00:00]} g6 {[%emt 0:00:00]} 3. g3 {[%emt 0:00:11]} Bg7 {[%emt 0:00:26]} 4. Bg2 {[%emt 0:00:30]} O-O 5. Nf3 d6 {[%emt 0:02:50]} 6. O-O {[%emt 0:02:00]} Nbd7 {[%emt 0:00:27]} 7. Nc3 {[%emt 0:00:24]} e5 {[%emt 0:00:07]} 8. e4 {[%emt 0:00:39]} c6 {[%emt 0:01:26]} 9. h3 {[%emt 0:02:21]} Qb6 {[%emt 0:01:55]} 10. Re1 {[%emt 0:05:25]} exd4 {[%emt 0:01:35]} 11. Nxd4 {[%emt 0:00:26]} Re8 {[%emt 0:04:12]} 12. Na4 {[%emt 0:03:55]} Qa5 {[%emt 0:03:41]} 13. a3 {[%emt 0:14:32]} Nc5 {[%emt 0:16:59]} 14. Nc3 {[%emt 0:03:32]} Qc7 {[%emt 0:11:27]} 15. b4 {[%emt 0:07:00]} Ncd7 {[%emt 0:01:35]} 16. Nb3 {[%emt 0:08:16]} Ng4 {[%emt 0:02:42]} 17. Bb2 {[%emt 0:03:05]} Nge5 {[%emt 0:02:27]} 18. Bf1 {[%emt 0:01:16]} Nb6 {[%emt 0:00:48]} 19. Na5 {[%emt 0:09:02]} Be6 {[%emt 0:00:50]} 20. c5 {[%emt 0:00:44]} dxc5 {[%emt 0:00:25]} 21. bxc5 {[%emt 0:00:51]} Nbd7 {[%emt 0:01:39]} 22. Nb3 {[%emt 0:06:29]} Rad8 {[%emt 0:01:57]} 23. Nd4 {[%emt 0:04:03]} Nxc5 {[%emt 0:00:17]} 24. Nxe6 {[%emt 0:02:39]} Rxe6 {[%emt 0:00:19]} 25. Qe2 {[%emt 0:05:24]} Rd2 {[%emt 0:00:14]} 26. Qe3 {[%emt 0:02:08]} Rxb2 {[%emt 0:00:30]} 27. Qxc5 {[%emt 0:00:52]} Nf3+ {[%emt 0:00:11]} 28. Kg2 {[%emt 0:00:07]} Bd4 {[%emt 0:00:07]} 0-1